{"text_format":"1","workbook":"xlsx","n_sheets":3,"sheets":["Nadzorna ploča","Popis opreme","Zaokretni podaci"],"not_rendered":{"charts":0,"images":0,"macros":1,"external_links":0,"defined_names":13,"comments":0,"pivot_tables":1},"unopened":[],"bounds":{"document_bytes":16777216,"sheet_cells":100000,"rows_first":2000,"rows_last":500,"rows_between":2000,"halvings":0,"cell_chars":16384,"cell_head_chars":4096},"cells_cut":0,"cells_raw":0,"read":"whole","date_system":"1900"}

{"sheet":"Nadzorna ploča","index":0,"n_rows":20,"n_cols":6,"rows_kept":20,"cut":false,"hidden":false,"merged":[]}
[null,"Nadzorna ploča"]
[]
[]
[null,null,null,null,null,"Ukupan broj"]
[null,null,null,null,null,{"$f":"GETPIVOTDATA(\"Broj\",'Zaokretni podaci'!$B$11)","v":3}]
[]
[null,null,null,null,null,"Ukupni mjesečni trošak"]
[null,null,null,null,null,{"$f":"GETPIVOTDATA(\"Ukupni mjesečni trošak\",'Zaokretni podaci'!$B$11)","v":1765.5943035068672}]
[]
[null,null,null,null,null,"Troškovi rada"]
[null,null,null,null,null,{"$f":"GETPIVOTDATA(\"Troškovi rada\",'Zaokretni podaci'!$B$11)","v":605}]
[]
[null,null,null,null,null,"Mjesečna amortizacija"]
[null,null,null,null,null,{"$f":"GETPIVOTDATA(\"Ukupni mjesečni trošak\",'Zaokretni podaci'!$B$11)","v":1765.5943035068672}]
[]
[null,null,null,null,null,"Iznos rate"]
[null,null,null,null,null,{"$f":"GETPIVOTDATA(\"Iznos rate\",'Zaokretni podaci'!$B$11)","v":1160.5943035068672}]
[]
[null,null,null,null,null,"Trenutna vrijednost"]
[null,null,null,null,null,{"$f":"GETPIVOTDATA(\"Trenutna vrijednost \",'Zaokretni podaci'!$B$11)","v":36534.931506849316}]

{"sheet":"Popis opreme","index":1,"n_rows":9,"n_cols":20,"rows_kept":9,"cut":false,"hidden":false,"merged":[]}
[null,"Popis opreme"]
[]
[null,null,null,"Istakni kad je broj preostalih mjesečnih rata manji od: ",20]
[]
[null,"Imovina ili\nserijski broj","Opis predmeta\n(marka i model)","Lokacija","Stanje","Dobavljač","Preostale\ngodine rada","Početna vrijednost","Polog","Datum kupnje\nili najma","Trajanje zajma\n(godine)","Stopa kredita","Mjesečni troškovi rada","Očekivana vrijednost na kraju ugovora","Preostalo\nmjesečnih rata","Mjesečna rata","Ukupni\nmjesečni trošak","Godišnja amortizacija\n(linearna)","Mjesečna amortizacija\n(linearna)","Trenutna vrijednost"]
[null,123,"Marka i model 1","Glavna podružnica","Dobro","Lokalno",5,30000,5000,"2011-01-15",4,0.1,200,20000,{"$f":"IFERROR(SUMPRODUCT(--(DAY(ROW(OFFSET($A$1,,,DATE(YEAR(OPREMA[[#This Row],[Datum kupnje\nili najma]])+OPREMA[[#This Row],[Trajanje zajma\n(godine)]],MONTH(OPREMA[[#This Row],[Datum kupnje\nili najma]])-1,DAY(OPREMA[[#This Row],[Datum kupnje\nili najma]]))-TODAY()))+DATE(YEAR(OPREMA[[#This Row],[Datum kupnje\nili najma]])+OPREMA[[#This Row],[Trajanje zajma\n(godine)]],MONTH(OPREMA[[#This Row],[Datum kupnje\nili najma]]),DAY(OPREMA[[#This Row],[Datum kupnje\nili najma]]))-1)=DAY(OPREMA[[#This Row],[Datum kupnje\nili najma]]))),0)","v":24},{"$f":"IFERROR(-(OPREMA[Početna vrijednost]>0)*(OPREMA[Početna vrijednost]<>OPREMA[Polog])*PMT(OPREMA[Stopa kredita]/MjeseciUGodini,OPREMA[Trajanje zajma\n(godine)]*MjeseciUGodini,OPREMA[Početna vrijednost]-OPREMA[Polog]),0)","v":634.06458586867973},{"$f":"OPREMA[[#This Row],[Mjesečna rata]]+OPREMA[[#This Row],[Mjesečni troškovi rada]]","v":834.06458586867973},{"$f":"IFERROR((OPREMA[Početna vrijednost]>0)*SLN(OPREMA[Početna vrijednost],OPREMA[Očekivana vrijednost na kraju ugovora],OPREMA[Trajanje zajma\n(godine)]),0)","v":2500},{"$f":"IFERROR(OPREMA[Godišnja amortizacija\n(linearna)]/MjeseciUGodini,0)","v":208.33333333333334},{"$f":"IFERROR(OPREMA[Početna vrijednost]-(OPREMA[Godišnja amortizacija\n(linearna)]*((TODAY()-OPREMA[Datum kupnje\nili najma])/DanaUGodini)),0)","v":25027.397260273974}]
[null,234,"Marka i model 2","Glavna podružnica","Dobro","Lokalno",4,12500,1500,"2011-03-10",3,7.7499999999999999E-2,120,3000,{"$f":"IFERROR(SUMPRODUCT(--(DAY(ROW(OFFSET($A$1,,,DATE(YEAR(OPREMA[[#This Row],[Datum kupnje\nili najma]])+OPREMA[[#This Row],[Trajanje zajma\n(godine)]],MONTH(OPREMA[[#This Row],[Datum kupnje\nili najma]])-1,DAY(OPREMA[[#This Row],[Datum kupnje\nili najma]]))-TODAY()))+DATE(YEAR(OPREMA[[#This Row],[Datum kupnje\nili najma]])+OPREMA[[#This Row],[Trajanje zajma\n(godine)]],MONTH(OPREMA[[#This Row],[Datum kupnje\nili najma]]),DAY(OPREMA[[#This Row],[Datum kupnje\nili najma]]))-1)=DAY(OPREMA[[#This Row],[Datum kupnje\nili najma]]))),0)","v":13},{"$f":"IFERROR(-(OPREMA[Početna vrijednost]>0)*(OPREMA[Početna vrijednost]<>OPREMA[Polog])*PMT(OPREMA[Stopa kredita]/MjeseciUGodini,OPREMA[Trajanje zajma\n(godine)]*MjeseciUGodini,OPREMA[Početna vrijednost]-OPREMA[Polog]),0)","v":343.43280007691891},{"$f":"OPREMA[[#This Row],[Mjesečna rata]]+OPREMA[[#This Row],[Mjesečni troškovi rada]]","v":463.43280007691891},{"$f":"IFERROR((OPREMA[Početna vrijednost]>0)*SLN(OPREMA[Početna vrijednost],OPREMA[Očekivana vrijednost na kraju ugovora],OPREMA[Trajanje zajma\n(godine)]),0)","v":3166.6666666666665},{"$f":"IFERROR(OPREMA[Godišnja amortizacija\n(linearna)]/MjeseciUGodini,0)","v":263.88888888888886},{"$f":"IFERROR(OPREMA[Početna vrijednost]-(OPREMA[Godišnja amortizacija\n(linearna)]*((TODAY()-OPREMA[Datum kupnje\nili najma])/DanaUGodini)),0)","v":6669.8630136986303}]
[null,345,"Marka i model 2","Podružnica 1","Zadovoljavajuće","Ostalo",1,10000,2500,"2010-09-15",4,0.08,285,1000,{"$f":"IFERROR(SUMPRODUCT(--(DAY(ROW(OFFSET($A$1,,,DATE(YEAR(OPREMA[[#This Row],[Datum kupnje\nili najma]])+OPREMA[[#This Row],[Trajanje zajma\n(godine)]],MONTH(OPREMA[[#This Row],[Datum kupnje\nili najma]])-1,DAY(OPREMA[[#This Row],[Datum kupnje\nili najma]]))-TODAY()))+DATE(YEAR(OPREMA[[#This Row],[Datum kupnje\nili najma]])+OPREMA[[#This Row],[Trajanje zajma\n(godine)]],MONTH(OPREMA[[#This Row],[Datum kupnje\nili najma]]),DAY(OPREMA[[#This Row],[Datum kupnje\nili najma]]))-1)=DAY(OPREMA[[#This Row],[Datum kupnje\nili najma]]))),0)","v":20},{"$f":"IFERROR(-(OPREMA[Početna vrijednost]>0)*(OPREMA[Početna vrijednost]<>OPREMA[Polog])*PMT(OPREMA[Stopa kredita]/MjeseciUGodini,OPREMA[Trajanje zajma\n(godine)]*MjeseciUGodini,OPREMA[Početna vrijednost]-OPREMA[Polog]),0)","v":183.09691756126861},{"$f":"OPREMA[[#This Row],[Mjesečna rata]]+OPREMA[[#This Row],[Mjesečni troškovi rada]]","v":468.09691756126858},{"$f":"IFERROR((OPREMA[Početna vrijednost]>0)*SLN(OPREMA[Početna vrijednost],OPREMA[Očekivana vrijednost na kraju ugovora],OPREMA[Trajanje zajma\n(godine)]),0)","v":2250},{"$f":"IFERROR(OPREMA[Godišnja amortizacija\n(linearna)]/MjeseciUGodini,0)","v":187.5},{"$f":"IFERROR(OPREMA[Početna vrijednost]-(OPREMA[Godišnja amortizacija\n(linearna)]*((TODAY()-OPREMA[Datum kupnje\nili najma])/DanaUGodini)),0)","v":4772.6027397260277}]
[null,"Ukupno",null,null,null,null,{"$f":"SUBTOTAL(101,OPREMA[Preostale\ngodine rada])","v":3.3333333333333335},{"$f":"SUBTOTAL(109,OPREMA[Početna vrijednost])","v":52500},{"$f":"SUBTOTAL(109,OPREMA[Polog])","v":9000},null,{"$f":"SUBTOTAL(101,OPREMA[Trajanje zajma\n(godine)])","v":3.6666666666666665},{"$f":"SUBTOTAL(101,OPREMA[Stopa kredita])","v":8.5833333333333331E-2},{"$f":"SUBTOTAL(109,OPREMA[Mjesečni troškovi rada])","v":605},{"$f":"SUBTOTAL(109,OPREMA[Očekivana vrijednost na kraju ugovora])","v":24000},{"$f":"SUBTOTAL(101,OPREMA[Preostalo\nmjesečnih rata])","v":19},{"$f":"SUBTOTAL(109,OPREMA[Mjesečna rata])","v":1160.5943035068672},{"$f":"SUBTOTAL(109,OPREMA[Ukupni\nmjesečni trošak])","v":1765.5943035068672},{"$f":"SUBTOTAL(101,OPREMA[Godišnja amortizacija\n(linearna)])","v":2638.8888888888887},{"$f":"SUBTOTAL(101,OPREMA[Mjesečna amortizacija\n(linearna)])","v":219.90740740740739},{"$f":"SUBTOTAL(109,OPREMA[Trenutna vrijednost])","v":36469.863013698632}]

{"sheet":"Zaokretni podaci","index":2,"n_rows":15,"n_cols":8,"rows_kept":15,"cut":false,"hidden":true,"merged":[]}
[null,"Zaokretni podaci"]
[null,"Ovaj list mora ostati sakriven. Izmjenom strukture zaokretne tablice na ovom listu može doći do pogrešaka u rezačima nadzorne ploče."]
[]
[null,"Opis predmeta\n(marka i model)","(sve)"]
[null,"Stanje","(sve)"]
[null,"Dobavljač","(sve)"]
[null,"Lokacija","(sve)"]
[null,"Preostale\ngodine rada","(sve)"]
[null,"Trajanje zajma\n(godine)","(sve)"]
[]
[null,"Natpisi redaka","Broj","Troškovi rada","Iznos rate","Ukupni mjesečni trošak","Mjesečna amortizacija","Trenutna vrijednost "]
[null,123,1,200,634.06458586867973,834.06458586867973,208.33333333333334,25047.945205479453]
[null,234,1,120,343.43280007691891,463.43280007691891,263.88888888888886,6695.8904109589048]
[null,345,1,285,183.09691756126861,468.09691756126858,187.5,4791.0958904109593]
[null,"Ukupni zbroj",3,605,1160.5943035068672,1765.5943035068672,659.72222222222217,36534.931506849316]